bitfinex-derivatives/quotes_BTCF0:USTF0_20250803
["timestamp","ask_amount","ask_price","bid_price","bid_amount"]
[1754199359006,0.58429399,113720.0,113710.0,0.65346435]
[1754199359208,0.94509399,113720.0,113710.0,0.65346435]
[1754199360604,0.6570611,113720.0,113710.0,0.65346435]
[1754199360810,0.94509399,113720.0,113710.0,0.65346435]
[1754199361509,0.6570611,113720.0,113710.0,0.65346435]
[1754199367412,0.2962611,113720.0,113710.0,0.65346435]
[1754199371112,0.2962611,113720.0,113710.0,0.36543146]
[1754199371318,0.2962611,113720.0,113710.0,0.65346435]
[1754199373811,0.2962611,113720.0,113710.0,0.36543146]
[1754199374007,0.2962611,113720.0,113710.0,0.65346435]
[1754199392929,0.1778904,113720.0,113710.0,1.01426435]
[1754199393126,0.002,113720.0,113710.0,1.30229724]
[1754199393331,0.001,113720.0,113710.0,1.30229724]
[1754199393631,0.2864765,113740.0,113730.0,0.292205]
[1754199393820,0.2198386,113740.0,113730.0,0.86827078]
[1754199394527,0.2198386,113740.0,113730.0,1.22907078]
[1754199394730,0.2208386,113740.0,113730.0,1.22907078]
[1754199395428,0.1778595,113740.0,113730.0,1.22907078]
[1754199396637,0.1778595,113740.0,113730.0,0.653005]
[1754199396935,0.1768595,113740.0,113730.0,1.22907078]
[1754199397232,0.1758595,113740.0,113730.0,1.22907078]
[1754199398136,0.1758595,113740.0,113730.0,0.653005]
[1754199398336,0.1985295,113740.0,113730.0,1.22907078]
[1754199398734,0.2149395,113740.0,113730.0,1.22907078]
[1754199399036,0.6204495,113740.0,113730.0,0.86827078]
[1754199399235,0.6417395,113740.0,113730.0,0.86827078]
[1754199399535,0.6562795,113740.0,113730.0,0.86827078]
[1754199400137,0.6562795,113740.0,113730.0,0.292205]
[1754199400333,0.6562795,113740.0,113730.0,0.86827078]
[1754199401942,0.6562795,113740.0,113730.0,0.292205]
[1754199402138,0.94431239,113740.0,113730.0,0.40436289]
[1754199402345,0.94431239,113740.0,113730.0,0.58023789]
[1754199402537,0.6562795,113740.0,113730.0,0.58023789]
[1754199402938,0.6562795,113740.0,113730.0,0.40436289]
[1754199403343,0.6562795,113740.0,113730.0,0.58023789]
[1754199403948,0.6562795,113740.0,113730.0,0.292205]
[1754199404146,0.94431239,113740.0,113730.0,0.58023789]
[1754199404649,0.6562795,113740.0,113730.0,0.58023789]
[1754199404849,0.94431239,113740.0,113730.0,0.58023789]
[1754199405348,0.6562795,113740.0,113730.0,0.58023789]
[1754199405547,0.94431239,113740.0,113730.0,0.58023789]
[1754199406448,0.6562795,113740.0,113730.0,0.58023789]
[1754199407352,0.6562795,113740.0,113730.0,0.292205]
[1754199407551,0.6562795,113740.0,113730.0,0.58023789]
[1754199410151,0.6562795,113740.0,113730.0,0.86827078]
[1754199410353,0.6562795,113740.0,113730.0,0.58023789]
[1754199410651,0.6562795,113740.0,113730.0,0.86827078]
[1754199411752,0.6562795,113740.0,113730.0,0.292205]
[1754199411955,0.6562795,113740.0,113730.0,0.86827078]
[1754199412656,0.6562795,113740.0,113730.0,0.58023789]
[1754199413758,0.6562795,113740.0,113730.0,0.292205]
[1754199413955,0.6562795,113740.0,113730.0,0.58023789]
[1754199415160,0.2954795,113740.0,113730.0,0.58023789]
[1754199415457,0.6562795,113740.0,113730.0,0.58023789]
[1754199419159,0.6562795,113740.0,113730.0,0.86827078]
[1754199419359,0.6562795,113740.0,113730.0,0.58023789]
[1754199420865,0.6562795,113740.0,113730.0,0.292205]
[1754199421058,0.6562795,113740.0,113730.0,0.58023789]
[1754199423669,0.2954795,113740.0,113730.0,0.58023789]
[1754199424060,0.2954795,113740.0,113730.0,0.292205]
[1754199424262,0.2954795,113740.0,113730.0,0.58023789]
[1754199425569,0.6562795,113740.0,113730.0,0.58023789]
[1754199429165,0.6562795,113740.0,113730.0,0.86827078]
[1754199429367,0.2954795,113740.0,113730.0,0.86827078]
[1754199433880,0.2954795,113740.0,113730.0,0.292205]
[1754199434175,0.2954795,113740.0,113730.0,0.86827078]
[1754199435475,0.2954795,113740.0,113730.0,0.58023789]
[1754199436982,0.2954795,113740.0,113730.0,0.86827078]
[1754199442579,0.2954795,113740.0,113730.0,0.58023789]
[1754199444975,0.2954795,113740.0,113730.0,0.86827078]
[1754199451384,0.2954795,113740.0,113730.0,0.292205]
[1754199451581,0.2954795,113740.0,113730.0,0.58023789]
[1754199457891,0.2954795,113740.0,113730.0,0.292205]
[1754199458101,0.2954795,113740.0,113730.0,0.58023789]
[1754199460003,0.58351239,113740.0,113730.0,0.58023789]
[1754199460411,0.2954795,113740.0,113730.0,0.58023789]
[1754199467008,0.2954795,113740.0,113730.0,0.86827078]
[1754199467310,0.2954795,113740.0,113730.0,0.292205]
[1754199467609,0.2954795,113740.0,113730.0,0.58023789]
[1754199467805,0.58351239,113740.0,113730.0,0.268995]
[1754199468003,0.2224048,113730.0,113720.0,0.0566]
[1754199468205,0.94249769,113730.0,113720.0,0.09598]
[1754199468404,0.94249769,113730.0,113720.0,0.08168]
[1754199468614,0.2936803,113720.0,113710.0,0.36553926]
[1754199468816,0.94251319,113720.0,113710.0,0.07014516]
[1754199469008,0.94251319,113720.0,113710.0,0.08168]
[1754199469308,0.94151319,113720.0,113710.0,0.38401289]
[1754199469509,0.94151319,113720.0,113710.0,0.40753289]
[1754199470500,0.6534803,113720.0,113710.0,0.1195]
[1754199470702,0.94151319,113720.0,113710.0,0.1195]
[1754199471306,0.94151319,113720.0,113710.0,0.18828178]
[1754199471508,0.94151319,113720.0,113710.0,0.47631467]
[1754199471912,0.94151319,113720.0,113710.0,0.18828178]
[1754199472509,0.94151319,113720.0,113710.0,0.47631467]
[1754199473611,0.94151319,113720.0,113710.0,0.18828178]
[1754199474013,0.94151319,113720.0,113710.0,0.19028178]
[1754199474615,0.94151319,113720.0,113710.0,0.47831467]
[1754199474816,0.94251319,113720.0,113710.0,0.47631467]
[1754199477213,0.94251319,113720.0,113710.0,0.18828178]
[1754199477418,0.94251319,113720.0,113710.0,0.47631467]
[1754199478018,0.6544803,113720.0,113710.0,0.18828178]
[1754199478213,0.6544803,113720.0,113710.0,0.47631467]
[1754199478214,0.94251319,113720.0,113710.0,0.47631467]
[1754199478613,0.94251319,113720.0,113710.0,0.18828178]
[1754199478819,0.94251319,113720.0,113710.0,0.47631467]
[1754199479020,0.94251319,113720.0,113710.0,0.18828178]
[1754199479319,0.94251319,113720.0,113710.0,0.47631467]
[1754199480019,0.6544803,113720.0,113710.0,0.47631467]
[1754199480210,0.94251319,113720.0,113710.0,0.47631467]
[1754199481914,0.94251319,113720.0,113710.0,0.18828178]
[1754199482119,0.94251319,113720.0,113710.0,0.47631467]
[1754199482418,0.95116737,113720.0,113710.0,0.47631467]
[1754199483922,0.95116737,113720.0,113710.0,0.18828178]
[1754199484121,0.95116737,113720.0,113710.0,0.47631467]
[1754199484430,0.66313448,113720.0,113710.0,0.47631467]
[1754199484814,0.95116737,113720.0,113710.0,0.47631467]
[1754199485015,0.95116737,113720.0,113710.0,0.06878178]
[1754199485219,0.2370213,113700.0,113690.0,0.30026637]
[1754199485418,0.58331419,113700.0,113690.0,0.58829926]
[1754199485611,0.6560813,113700.0,113690.0,0.40359289]
[1754199485815,0.94411419,113700.0,113690.0,0.40359289]
[1754199486614,0.94411419,113700.0,113690.0,0.40459289]
[1754199486925,0.94411419,113700.0,113690.0,0.40659289]
[1754199487424,0.6560813,113700.0,113690.0,0.58252969]
[1754199487817,0.2952813,113700.0,113690.0,0.58252969]
[1754199489521,0.2233313,113700.0,113690.0,0.59122011]
[1754199489721,0.2198925,113710.0,113700.0,0.2914813]
[1754199489927,0.2198925,113710.0,113700.0,1.22834708]
[1754199490322,0.2433025,113710.0,113700.0,1.22834708]
[1754199490721,0.2433025,113710.0,113700.0,0.6522813]
[1754199490920,0.2433025,113710.0,113700.0,0.90767398]
[1754199492129,0.3042925,113710.0,113700.0,0.90767398]
[1754199492522,0.3042925,113710.0,113700.0,0.54687398]
[1754199492923,0.3042925,113710.0,113700.0,0.54787398]
[1754199493423,0.3042925,113710.0,113700.0,0.54987398]
[1754199493631,0.3179825,113710.0,113700.0,0.54887398]
[1754199493825,0.3392525,113710.0,113700.0,0.91067398]
[1754199498123,0.175916,113710.0,113700.0,0.91067398]
[1754199499835,0.199326,113710.0,113700.0,0.91067398]
[1754199500031,0.246736,113710.0,113700.0,0.91067398]
[1754199500232,0.295276,113710.0,113700.0,0.91067398]
[1754199500837,0.295276,113710.0,113700.0,0.54987398]
[1754199501331,0.295276,113710.0,113700.0,0.2944813]
[1754199501535,0.91146868,113710.0,113700.0,0.2716612]
[1754199501937,0.91146868,113710.0,113700.0,0.08133]
[1754199502140,0.91146868,113710.0,113700.0,0.003]
[1754199502837,0.91146868,113710.0,113700.0,0.002]
[1754199503139,0.91146868,113710.0,113700.0,0.0325]
[1754199503337,0.91146868,113710.0,113700.0,0.06333]
[1754199503937,0.91146868,113710.0,113700.0,0.07774]
[1754199504234,0.91146868,113710.0,113700.0,0.2914812]
[1754199504235,0.656076,113710.0,113700.0,0.2914812]
[1754199506338,0.295276,113710.0,113700.0,0.2914812]
[1754199507334,0.656076,113710.0,113700.0,0.2914812]
[1754199507836,0.295276,113710.0,113700.0,0.2914812]
[1754199511943,0.295276,113710.0,113700.0,0.2924812]
[1754199512243,0.295276,113710.0,113700.0,0.2944812]
[1754199512544,0.295276,113710.0,113700.0,0.2934812]
[1754199514039,0.295276,113710.0,113700.0,0.2706612]
[1754199514246,0.295276,113710.0,113700.0,0.2686612]
[1754199515344,0.295276,113710.0,113700.0,0.2926012]
[1754199515543,0.295276,113710.0,113700.0,0.2936012]
[1754199516339,0.295276,113710.0,113700.0,0.2956012]
[1754199517040,0.295276,113710.0,113700.0,0.2936012]
[1754199519550,0.295276,113710.0,113700.0,0.2926012]
[1754199521842,0.295276,113710.0,113700.0,0.04583]
[1754199522050,0.2950012,113700.0,113690.0,0.27935572]
[1754199522250,0.6558012,113700.0,113690.0,0.27935572]
[1754199522550,0.2950167,113690.0,113680.0,0.2946212]
[1754199522750,0.91120938,113690.0,113680.0,0.09474]
[1754199523055,0.6558167,113690.0,113680.0,0.09474]
[1754199523442,0.6558167,113690.0,113670.0,0.07998]
[1754199523443,0.2950322,113680.0,113670.0,0.07998]
[1754199523746,0.91122488,113680.0,113670.0,0.04845]
[1754199524450,0.6548322,113680.0,113670.0,0.00905]
[1754199524650,0.91022488,113680.0,113670.0,0.00905]
[1754199525055,0.91022488,113680.0,113670.0,0.04058]
[1754199525247,0.2920476,113670.0,113660.0,0.11868]
[1754199525941,0.90824028,113670.0,113660.0,0.09474]
[1754199526142,0.90824028,113670.0,113660.0,0.04845]
[1754199526348,0.6528476,113670.0,113660.0,0.00905]
[1754199526555,0.2950631,113660.0,113650.0,0.36352203]
[1754199526854,0.6538631,113660.0,113650.0,0.36352203]
[1754199527047,0.6538631,113660.0,113650.0,0.18752343]
[1754199527354,0.6538631,113660.0,113650.0,0.32482193]
[1754199527555,0.6538631,113660.0,113650.0,0.33958193]
[1754199528050,0.6508631,113660.0,113650.0,0.34358193]
[1754199528263,0.6508631,113660.0,113650.0,0.36752193]
[1754199528766,0.6508631,113660.0,113650.0,0.37052193]
[1754199531048,0.6508631,113660.0,113650.0,0.33182193]
[1754199531348,0.6508631,113660.0,113650.0,0.34658193]
[1754199531554,0.6508631,113660.0,113650.0,0.37052193]
[1754199533759,0.2900631,113660.0,113650.0,0.37052193]
[1754199551776,0.340605,113670.0,113660.0,0.2942131]
[1754199551968,0.340605,113670.0,113660.0,0.54960578]
[1754199552164,0.340605,113670.0,113660.0,0.2942131]
[1754199553066,0.340605,113670.0,113660.0,0.2962131]
[1754199553976,0.340605,113670.0,113660.0,0.2982131]
[1754199559477,0.340605,113670.0,113660.0,0.55360578]
[1754199560782,0.340605,113670.0,113660.0,0.2982131]
[1754199561779,0.70417188,113680.0,113670.0,0.426167]
[1754199561780,0.1989221,113680.0,113670.0,0.426167]
[1754199561976,0.2499721,113680.0,113670.0,0.68155968]
[1754199562176,0.2828621,113680.0,113670.0,0.68155968]
[1754199562377,0.2965821,113680.0,113670.0,0.68155968]
[1754199562974,0.2965821,113680.0,113670.0,0.68255968]
[1754199564483,0.2965821,113680.0,113670.0,0.427167]
[1754199564974,0.2965821,113680.0,113670.0,0.68255968]
[1754199568683,0.1759521,113680.0,113670.0,0.68255968]
[1754199568981,0.4927614,113690.0,113680.0,0.1759521]
[1754199568982,0.7174391,113690.0,113680.0,0.1759521]
[1754199569183,0.3813191,113690.0,113680.0,0.2934721]
[1754199570788,0.3823191,113690.0,113680.0,0.2934721]
[1754199572784,0.3823191,113690.0,113680.0,0.30205617]
[1754199582290,0.3823191,113690.0,113680.0,0.2934721]
[1754199582794,0.66981597,113690.0,113680.0,0.58096897]
[1754199585493,0.1972121,113680.0,113670.0,0.05662507]
[1754199585688,0.94164897,113680.0,113670.0,0.47207954]
[1754199585888,0.94164897,113680.0,113670.0,0.56668954]
[1754199586592,0.94164897,113680.0,113670.0,0.58959954]
[1754199586791,0.94164897,113680.0,113670.0,0.59059954]
[1754199587695,0.94164897,113680.0,113670.0,0.30310267]
[1754199587893,0.94164897,113680.0,113670.0,0.59059954]
[1754199588898,0.6541521,113680.0,113670.0,0.30310267]
[1754199593602,0.6541521,113680.0,113670.0,0.28019267]
[1754199594194,0.6541521,113680.0,113670.0,0.05762507]
[1754199594695,0.90975996,113680.0,113670.0,0.001]
[1754199596993,0.2230685,113650.0,113640.0,0.1760025]
[1754199597202,0.2933985,113650.0,113640.0,0.2706125]
[1754199597411,0.2933985,113650.0,113640.0,0.09461]
[1754199597601,0.90980636,113650.0,113640.0,0.04801]
[1754199597792,0.90980636,113650.0,113640.0,0.03167]
[1754199598397,0.90980636,113650.0,113640.0,0.0638]
[1754199599207,0.6541985,113650.0,113640.0,0.0678]
[1754199599403,0.90980636,113650.0,113640.0,0.0678]
[1754199599601,0.90980636,113650.0,113640.0,0.0728]
[1754199600200,0.90980636,113650.0,113640.0,0.001]
[1754199600509,0.6541985,113650.0,113640.0,0.001]
[1754199600811,0.90980636,113650.0,113640.0,0.001]
[1754199602098,0.73380786,113650.0,113620.0,0.07030603]
[1754199602404,0.6558894,113630.0,113620.0,0.2198249]
[1754199602603,0.6558894,113630.0,113620.0,0.2718349]
[1754199602804,0.6558894,113630.0,113620.0,0.28043154]
[1754199603599,0.6558894,113630.0,113620.0,0.2748349]
[1754199603909,0.91149726,113630.0,113620.0,0.003]
[1754199604111,0.91149726,113630.0,113620.0,0.1790449]
[1754199604307,0.6558894,113630.0,113620.0,0.1790449]
[1754199604803,0.91149726,113630.0,113620.0,0.1790449]
[1754199605004,0.6558894,113630.0,113620.0,0.1790449]
[1754199605203,0.91149726,113630.0,113620.0,0.1790449]
[1754199605403,0.91149726,113630.0,113620.0,0.2135449]
[1754199606210,0.91149726,113630.0,113620.0,0.2165449]
[1754199606808,0.91149726,113630.0,113620.0,0.2135449]
[1754199607509,0.91149726,113630.0,113620.0,0.2115449]
[1754199609110,0.6558894,113630.0,113620.0,0.2115449]
[1754199609310,0.91149726,113630.0,113620.0,0.2591449]
[1754199609510,0.91149726,113630.0,113620.0,0.2728349]
[1754199613908,0.91149726,113630.0,113620.0,0.0831]
[1754199614109,0.91149726,113630.0,113620.0,0.0486]
[1754199614312,0.91149726,113630.0,113620.0,0.03269]
[1754199614512,0.91149726,113630.0,113620.0,0.2087349]
[1754199615215,0.91149726,113630.0,113620.0,0.2432349]
[1754199615414,0.91149726,113630.0,113620.0,0.2728349]
[1754199617113,0.91149726,113630.0,113620.0,0.2976249]
[1754199618920,0.6558894,113630.0,113620.0,0.2976249]
[1754199620520,0.91149726,113630.0,113620.0,0.2976249]
[1754199622821,0.94370071,113630.0,113620.0,0.58543621]
[1754199623217,0.94370071,113630.0,113620.0,0.2976249]
[1754199623417,0.94370071,113630.0,113620.0,0.58543621]
[1754199624018,0.94370071,113630.0,113620.0,0.2976249]
[1754199624317,0.94370071,113630.0,113620.0,0.58543621]
[1754199625917,0.94370071,113630.0,113620.0,0.2976249]
[1754199627222,0.96689301,113630.0,113620.0,0.2976249]
[1754199632026,0.96689301,113630.0,113620.0,0.58543621]
[1754199632627,0.6790817,113630.0,113620.0,0.58543621]
[1754199632825,0.96689301,113630.0,113620.0,0.58543621]
[1754199634128,0.96689301,113630.0,113620.0,0.2976249]
[1754199634430,0.96689301,113630.0,113620.0,0.58543621]
[1754199635331,0.6790817,113630.0,113620.0,0.58543621]
[1754199635532,0.94370071,113630.0,113620.0,0.58543621]
[1754199636027,0.96692116,113630.0,113620.0,0.58543621]
[1754199636631,0.96692116,113630.0,113620.0,0.2976249]
[1754199636932,0.96692116,113630.0,113620.0,0.58543621]
[1754199637932,0.96692116,113630.0,113620.0,0.2976249]
[1754199639236,0.67910985,113630.0,113620.0,0.2976249]
[1754199639534,0.96692116,113630.0,113620.0,0.2976249]
[1754199639736,0.94370071,113630.0,113620.0,0.2976249]
[1754199640831,0.94370071,113630.0,113620.0,0.58543621]
[1754199650345,0.58290071,113630.0,113620.0,0.58543621]
[1754199650736,0.94370071,113630.0,113620.0,0.2976249]
[1754199650942,0.94370071,113630.0,113620.0,0.58543621]
[1754199655743,0.94370071,113630.0,113620.0,0.2976249]
[1754199655945,0.94370071,113630.0,113620.0,0.58543621]
[1754199657846,0.6558894,113630.0,113620.0,0.58543621]
[1754199658045,0.94370071,113630.0,113620.0,0.58543621]
[1754199659039,0.94370071,113630.0,113620.0,0.2976249]
[1754199659246,0.94370071,113630.0,113620.0,0.58543621]
[1754199659450,0.94370071,113630.0,113620.0,0.2976249]
[1754199660847,0.94370071,113630.0,113620.0,0.58543621]
[1754199662952,0.6558894,113630.0,113620.0,0.58543621]
[1754199663155,0.94370071,113630.0,113620.0,0.2976249]
[1754199665761,0.94370071,113630.0,113620.0,0.58543621]
[1754199667752,0.6558894,113630.0,113620.0,0.58543621]
[1754199667956,0.94370071,113630.0,113620.0,0.58543621]
[1754199669256,0.94370071,113630.0,113620.0,0.2976249]
[1754199669457,0.94370071,113630.0,113620.0,0.58543621]
[1754199669652,0.94370071,113630.0,113620.0,0.2976249]
[1754199670058,0.6558894,113630.0,113620.0,0.2976249]
[1754199670256,0.94370071,113630.0,113620.0,0.2976249]
[1754199678962,0.58290071,113630.0,113620.0,0.2976249]
[1754199679160,0.94370071,113630.0,113620.0,0.2976249]
[1754199680469,0.6558894,113630.0,113620.0,0.2976249]
[1754199680766,0.94370071,113630.0,113620.0,0.2976249]
[1754199683764,0.6558894,113630.0,113620.0,0.12158]
[1754199683962,0.94370071,113630.0,113620.0,0.2976249]
[1754199689368,0.6558894,113630.0,113620.0,0.2976249]
[1754199689565,0.94370071,113630.0,113620.0,0.58543621]
[1754199689758,0.94370071,113630.0,113620.0,0.001]
[1754199690171,0.94370071,113630.0,113620.0,0.03293]
[1754199690466,0.94370071,113630.0,113620.0,0.269315]
[1754199690670,0.94370071,113630.0,113620.0,0.293115]
[1754199691769,0.94370071,113630.0,113620.0,0.58092631]
[1754199691966,0.94370071,113630.0,113620.0,0.001]
[1754199694774,0.95235314,113630.0,113620.0,0.001]
[1754199695475,0.35719,113610.0,113600.0,0.2666349]
[1754199695665,1.07845131,113610.0,113600.0,0.3361649]
[1754199696273,1.07845131,113610.0,113600.0,0.62397621]
[1754199696674,1.07845131,113610.0,113600.0,0.62597621]
[1754199697075,1.07845131,113610.0,113600.0,0.62897621]
[1754199697275,0.71765131,113610.0,113600.0,0.62897621]
[1754199699074,0.71765131,113610.0,113600.0,0.63774863]
[1754199699978,0.71765131,113610.0,113600.0,0.70760362]
[1754199700873,0.42984,113610.0,113600.0,0.70760362]
[1754199701078,0.71765131,113610.0,113600.0,0.70760362]
[1754199701279,0.42984,113610.0,113600.0,0.70760362]
[1754199701481,0.71765131,113610.0,113600.0,0.70760362]
[1754199702181,0.42984,113610.0,113600.0,0.70760362]
[1754199702480,0.71765131,113610.0,113600.0,0.70760362]
[1754199703482,0.42984,113610.0,113600.0,0.70760362]
[1754199703679,0.62959171,113620.0,113610.0,0.2921304]
[1754199703879,0.62959171,113620.0,113610.0,0.94074171]
[1754199705380,0.62959171,113620.0,113610.0,0.94274171]
[1754199706184,0.62959171,113620.0,113610.0,0.94374171]
[1754199707580,0.2831166,113620.0,113610.0,0.94374171]
[1754199707780,0.2024116,113630.0,113620.0,0.2921151]
[1754199707973,0.3607767,113640.0,113630.0,0.2135596]
[1754199708279,0.3607767,113640.0,113630.0,0.57991091]
[1754199708280,0.3417405,113640.0,113630.0,0.57991091]
[1754199709485,0.62955181,113640.0,113630.0,0.57991091]
[1754199709684,0.3417405,113640.0,113630.0,0.57991091]
[1754199709884,0.3427405,113640.0,113630.0,0.57991091]
[1754199710484,0.63055181,113640.0,113630.0,0.57991091]
[1754199711988,0.63155181,113640.0,113630.0,0.57991091]
[1754199713288,0.63155181,113640.0,113630.0,0.2920996]
[1754199713488,0.63155181,113640.0,113630.0,0.57991091]
[1754199714800,0.63155181,113640.0,113630.0,0.94071091]
[1754199715406,0.63155181,113640.0,113630.0,0.57991091]
[1754199718400,0.63155181,113640.0,113630.0,0.2920996]
[1754199718600,0.63155181,113640.0,113630.0,0.57991091]
[1754199719003,0.63155181,113640.0,113630.0,0.2920996]
[1754199720605,0.63155181,113640.0,113630.0,0.57991091]
[1754199725901,0.3437405,113640.0,113630.0,0.57991091]
[1754199726103,0.63155181,113640.0,113630.0,0.57991091]
[1754199730704,0.3437405,113640.0,113630.0,0.57991091]
[1754199730905,0.63155181,113640.0,113630.0,0.57991091]
[1754199732493,0.63155181,113640.0,113630.0,0.94071091]
[1754199735402,0.178014,113640.0,113630.0,0.94071091]
[1754199735702,0.200644,113640.0,113630.0,0.6528996]
[1754199735896,0.258864,113640.0,113630.0,0.94071091]
[1754199736099,0.294124,113640.0,113630.0,0.94071091]
[1754199736806,0.294124,113640.0,113630.0,0.6528996]
[1754199737007,0.294124,113640.0,113630.0,0.94071091]
[1754199739009,0.294124,113640.0,113630.0,0.6528996]
[1754199739310,0.294124,113640.0,113630.0,0.94071091]
[1754199739609,0.58193531,113640.0,113630.0,0.94071091]
[1754199740810,0.294124,113640.0,113630.0,0.94071091]
[1754199742406,0.58193531,113640.0,113630.0,0.94071091]
[1754199745521,0.294124,113640.0,113630.0,0.94071091]
[1754199745717,0.58193531,113640.0,113630.0,0.94071091]
[1754199749918,0.58193531,113640.0,113630.0,0.57991091]
[1754199750113,0.58193531,113640.0,113630.0,0.94071091]
[1754199752921,0.58193531,113640.0,113630.0,0.57991091]
[1754199753121,0.58193531,113640.0,113630.0,0.94071091]
[1754199753923,0.58193531,113640.0,113630.0,0.57991091]
[1754199754125,0.58193531,113640.0,113630.0,0.94071091]
[1754199762527,0.294124,113640.0,113630.0,0.94071091]
[1754199762729,0.58193531,113640.0,113630.0,0.94071091]
[1754199765228,0.58193531,113640.0,113630.0,0.6528996]
[1754199765429,0.58193531,113640.0,113630.0,0.94071091]
[1754199768133,0.294124,113640.0,113630.0,0.94071091]
[1754199768330,0.58193531,113640.0,113630.0,0.94071091]
[1754199769635,0.58193531,113640.0,113630.0,0.57991091]
[1754199769828,0.58193531,113640.0,113630.0,0.94071091]
[1754199770023,0.58193531,113640.0,113630.0,0.6528996]
[1754199770429,0.58193531,113640.0,113630.0,0.5368296]
[1754199770629,0.58193531,113640.0,113630.0,0.5687596]
[1754199770835,0.58193531,113640.0,113630.0,0.5782896]
[1754199771034,0.58193531,113640.0,113630.0,0.5993596]
[1754199771535,0.58193531,113640.0,113630.0,0.6541396]
[1754199772834,0.58193531,113640.0,113630.0,0.94195091]
[1754199775540,0.294124,113640.0,113630.0,0.94195091]
[1754199775731,0.58193531,113640.0,113630.0,0.94195091]
[1754199793960,0.58193531,113640.0,113630.0,0.6541396]
[1754199795862,0.58193531,113640.0,113630.0,0.94195091]
[1754199804474,0.58193531,113640.0,113630.0,0.6541396]
[1754199804678,0.58193531,113640.0,113630.0,0.94195091]
[1754199835605,0.58193531,113640.0,113630.0,0.58115091]
[1754199835809,0.58193531,113640.0,113630.0,0.94195091]
[1754199836009,0.58193531,113640.0,113630.0,0.58115091]
[1754199836206,0.58193531,113640.0,113630.0,0.94195091]
[1754199836610,0.294124,113640.0,113630.0,0.94195091]
[1754199836810,0.58193531,113640.0,113630.0,0.94195091]
[1754199839714,0.58093531,113640.0,113630.0,0.94195091]
[1754199840513,0.58193531,113640.0,113630.0,0.94195091]
[1754199843112,0.58193531,113640.0,113630.0,0.6541396]
[1754199843308,0.58193531,113640.0,113630.0,0.94195091]
[1754199844919,0.294124,113640.0,113630.0,0.94195091]
[1754199845110,0.58193531,113640.0,113630.0,0.94195091]
[1754199845818,0.58193531,113640.0,113630.0,0.6541396]
[1754199846018,0.58193531,113640.0,113630.0,0.94195091]
[1754199847211,0.58193531,113640.0,113630.0,0.6541396]
[1754199847414,0.58193531,113640.0,113630.0,0.94195091]
[1754199863614,0.58193531,113640.0,113630.0,0.58115091]
[1754199863820,0.58193531,113640.0,113630.0,0.94195091]
[1754199864622,0.58193531,113640.0,113630.0,0.58115091]
[1754199864822,0.58193531,113640.0,113630.0,0.94195091]
[1754199866523,0.58193531,113640.0,113630.0,0.6541396]
[1754199866718,0.58193531,113640.0,113630.0,0.94195091]
[1754199867323,0.58193531,113640.0,113630.0,0.58115091]
[1754199867523,0.58193531,113640.0,113630.0,0.94195091]
[1754199872327,0.178014,113640.0,113630.0,0.94195091]
[1754199872525,0.46582531,113640.0,113630.0,0.94195091]
[1754199873230,0.49020531,113640.0,113630.0,0.94195091]
[1754199874425,0.57127531,113640.0,113630.0,0.94195091]
[1754199874623,0.58583531,113640.0,113630.0,0.94195091]
[1754199885637,1.23444662,113640.0,113630.0,0.2933396]
[1754199885939,0.2960551,113620.0,113610.0,0.7421669]
[1754199886232,0.58386641,113620.0,113610.0,0.293339]
[1754199887534,0.58386641,113620.0,113610.0,0.295339]
[1754199887837,0.58386641,113620.0,113610.0,0.297339]
[1754199893342,0.2960551,113620.0,113610.0,0.297339]
[1754199893544,0.58386641,113620.0,113610.0,0.297339]
[1754199893838,1.23247772,113620.0,113610.0,0.004]
[1754199894042,0.94466641,113620.0,113610.0,0.004]
[1754199895333,1.23247772,113620.0,113610.0,0.004]
[1754199895539,0.94466641,113620.0,113610.0,0.004]
[1754199895738,1.23247772,113620.0,113610.0,0.004]
[1754199896447,0.94466641,113620.0,113610.0,0.004]
[1754199896638,0.94466641,113620.0,113610.0,0.1800606]
[1754199898848,0.6568551,113620.0,113610.0,0.1800606]
[1754199899051,0.94466641,113620.0,113610.0,0.2600006]
[1754199899240,0.2814951,113620.0,113610.0,0.94521191]
[1754199899640,0.11897,113620.0,113610.0,0.94521191]
[1754199899839,0.07066,113620.0,113610.0,1.23302322]
[1754199900543,0.07066,113620.0,113610.0,0.94521191]
[1754199900947,0.2467052,113620.0,113610.0,0.94521191]
[1754199901850,0.2797852,113620.0,113610.0,0.94521191]
[1754199902049,0.2933052,113620.0,113610.0,0.94521191]
[1754199902254,0.2933052,113620.0,113610.0,0.6574006]
[1754199902552,0.58111651,113620.0,113610.0,0.94521191]
[1754199909453,0.2933052,113620.0,113610.0,0.94521191]
[1754199909954,0.58111651,113620.0,113610.0,0.94521191]
[1754199911355,0.58111651,113620.0,113610.0,0.6574006]
[1754199911761,0.58111651,113620.0,113610.0,0.94521191]
[1754199913060,0.58111651,113620.0,113610.0,0.5820006]
[1754199913452,0.58111651,113620.0,113610.0,0.6046806]
[1754199913648,0.58111651,113620.0,113610.0,0.6202606]
[1754199913853,0.58111651,113620.0,113610.0,0.6568606]
[1754199919056,0.58111651,113620.0,113610.0,0.2273706]
[1754199919266,0.58111651,113620.0,113610.0,0.2735006]
[1754199919468,0.58111651,113620.0,113610.0,0.2960606]
[1754199922150,0.58111651,113620.0,113610.0,0.1800606]
[1754199922353,0.94191651,113620.0,113610.0,0.004]
[1754199926570,0.95084427,113620.0,113610.0,0.004]
[1754199927568,1.23865558,113620.0,113610.0,0.004]
[1754199933366,1.23865558,113620.0,113610.0,0.003]
[1754199933867,1.23865558,113620.0,113610.0,0.001]
[1754199935973,0.2224061,113600.0,113590.0,0.1760905]
[1754199936165,0.94279741,113600.0,113590.0,0.1760905]
[1754199936372,0.94279741,113600.0,113590.0,0.2082005]
[1754199936567,0.94279741,113600.0,113590.0,0.2178305]
[1754199936767,0.94279741,113600.0,113590.0,0.2554205]
[1754199936969,0.94279741,113600.0,113590.0,0.2690305]
[1754199937168,0.94279741,113600.0,113590.0,0.2720305]
[1754199937668,0.94279741,113600.0,113590.0,0.2750305]
[1754199938073,0.94279741,113600.0,113590.0,0.2987605]
[1754199939865,0.94279741,113600.0,113590.0,0.2967605]
[1754199940576,0.94279741,113600.0,113590.0,0.2957605]
[1754199940772,0.94279741,113600.0,113590.0,0.58357181]
[1754199940773,0.92839741,113600.0,113590.0,0.58357181]
[1754199941075,0.58199741,113600.0,113590.0,0.58357181]
[1754199941276,0.94279741,113600.0,113590.0,0.58357181]
[1754199941974,0.94279741,113600.0,113590.0,0.2957605]
[1754199942370,0.94279741,113600.0,113590.0,0.58357181]
[1754199942572,0.94279741,113600.0,113590.0,0.2957605]
[1754199943576,0.58199741,113600.0,113590.0,0.2957605]
[1754199944274,0.58199741,113600.0,113590.0,0.003]
[1754199944470,0.94279741,113600.0,113590.0,0.003]
[1754199944664,0.94279741,113600.0,113590.0,0.1790912]
[1754199945072,0.94279741,113600.0,113590.0,0.2112012]